[Event "Germany Countries-chT Youth 2022"]
[Site "Wiesbaden"]
[Date "2022.10.02"]
[Round "3"]
[White "Nechitailo, Nikita"]
[Black "Rudolph, Eva"]
[Result "0-1"]
[ECO "B20"]
[WhiteElo "1651"]
[BlackElo "1911"]
[Annotator "TA"]
[PlyCount "52"]
[EventDate "2022.09.28"]
[EventType "team-tourn"]
[EventRounds "7"]
[EventCountry "GER"]
[SourceTitle "playchess.com"]
[Source "ChessBase"]
[SourceQuality "1"]
[TimeControl "40/5400+30:1800+30"]

{[%evp 9,52,0,14,0,16,19,17,0,0,-97,-62,-58,-60,-108,-110,-123,-97,-142,-139,-174,-172,-412,-423,-785,-777,-777,-754,-1006,-918,-973,-978,-1187,-1186,-1177,-1168,-1124,-1121,-1143,-1081,-29987,-29988,-29985,-1494,-5102,-1126]} 1. e4 {[%emt 0:00:02]} c5 {[%emt 0:00:04][%cal Bc7c5,Bc5b4,Bb4a3][%mdl 32]} 2. b4 {[%emt 0:00:04]} cxb4 {[%emt 0:00:18]} 3. a3 {[%emt 0:00:04]} bxa3 {[%emt 0:02:45]} 4. d4 {[%emt 0:00:10][%cal Bd2d4,Bd4d5][%mdl 32]} d6 {[%emt 0:01:23]} 5. Nf3 {[%emt 0:00:34]} Nc6 {[%emt 0:08:21]} 6. d5 {[%emt 0:11:41] [#] B20: Sicilian: Unusual White 2nd moves.} Ne5 $146 {[%emt 0:01:10]} (6... Qa5+ $2 7. Bd2 Qc7 8. dxc6 $18) ({Predecessor:} 6... Nb8 7. Rxa3 g6 8. Qd4 Nf6 9. Rxa7 Rxa7 10. Qxa7 Qc7 11. Be3 Nbd7 12. Bd3 Bg7 13. Na3 Qc3+ 14. Ke2 O-O 15. Nb5 Qb2 16. Bc1 {1-0 (16) Hilbert,S (1339)-Strohmeier,J (1436) FICGS email 2017}) 7. Nxe5 {[%emt 0:06:31]} dxe5 {[%emt 0:00:08]} 8. Nxa3 {[%emt 0:00:19] The position is equal.} (8. Qh5 {keeps more tension.} Qa5+ 9. Bd2 Qc7 10. Bb5+) 8... Nf6 {[%emt 0:00:58][%cal Bg8f6,Bf6e4,Be4c3][%mdl 32] Inhibits Qh5.} 9. f4 {[%emt 0:03:36]} (9. Bb5+ Bd7 10. Bxd7+ Nxd7 11. O-O) (9. Bb5+ $11 {keeps the balance.} Bd7 10. Bxd7+ Nxd7 11. O-O) 9... Nxe4 {[%emt 0:09:23]} 10. Bb5+ {[%emt 0:08:57]} Bd7 {[%emt 0:00:20] ...e6 is the strong threat.} 11. Bxd7+ {[%emt 0:00:02] Black converts the advantage convincingly.} (11. fxe5 $15 Bxb5 12. Nxb5) 11... Qxd7 $17 {[%emt 0:00:31]} 12. fxe5 {[%emt 0:11:42] [#]} Nc3 $1 {[%emt 0:12:39][%csl LRd1,LRd5] Black is more active.} (12... Qf5 13. Qd4 $14) 13. Qd4 {[%emt 0:02:59]} Rc8 $40 {[%emt 0:09:34][%mdl 128] Black has strong attack.} ({Resist} 13... Qxd5 14. Qxc3 e6 15. Be3 $16) ({And not} 13... Nxd5 14. c4 Nb4 15. Qxd7+ Kxd7 16. O-O $15) 14. Bb2 {[%emt 0:29:46]} Nxd5 {[%emt 0:02:51] And now ...e6 would win.} 15. O-O-O $2 {[%emt 0:02:24]} (15. c4 {was worth a try.} Nb6 16. Nb5 Rxc4 17. Qxd7+ Kxd7 18. Rd1+ (18. Rxa7 $2 Rb4 $19) 18... Ke8 19. e6) 15... e6 $19 {[%emt 0:02:17][%cal Be7e6,Be6d5][%mdl 32]} 16. Nc4 {[%emt 0:01:17]} (16. Qd3 $142 Qc6 17. Nb5) 16... Qc6 {[%emt 0:02:54] Strongly threatening ...b5.} 17. Rhf1 {[%emt 0:05:37]} Qxc4 {[%emt 0:02:44][%csl Gc8][%cal Rc4c2] [#]} 18. Qf2 {[%emt 0:00:05]} Qc7 {[%emt 0:01:08]} 19. Rxd5 {[%emt 0:08:59]} exd5 {[%emt 0:00:48]} 20. e6 {[%emt 0:00:22]} fxe6 {[%emt 0:00:58]} 21. Qe2 {[%emt 0:00:06]} Be7 {[%emt 0:12:37]} 22. Bxg7 {[%emt 0:02:11]} Rg8 {[%emt 0:02:35]} 23. Be5 {[%emt 0:01:24]} Qc4 {[%emt 0:02:10]} 24. Qh5+ {[%emt 0:01:01]} Kd7 {[%emt 0:00:36][%csl Gc8][%cal Rc4c2]} 25. Rf2 {[%emt 0:00:28]} Qe4 {[%emt 0:03:50]} (25... Qb4 $142 26. Qf3 Rgf8 27. c3 Bg5+ 28. Kd1 Rxf3 29. Rxf3 Qb1+ 30. Ke2 Qe4+ 31. Kd1 Rc4 32. Rf7+ Ke8 33. Rf8+ Kxf8 34. Bd4 Rxd4+ 35. cxd4 Qd3+ 36. Ke1 Bd2+ 37. Kf2 Qe3+ 38. Kf1 Qe1#) 26. Re2 {[%emt 0:01:09]} Qg4 {[%emt 0:01:10] Weighted Error Value: White=1.00/Black=0.21 (precise)} 0-1

[Event "Germany Countries-chT Youth 2022"]
[Site "Wiesbaden"]
[Date "2022.10.02"]
[Round "3"]
[White "Bezsonna, Polina"]
[Black "Modali, Nikhilamrutha"]
[Result "1/2-1/2"]
[ECO "B47"]
[WhiteElo "1649"]
[BlackElo "1355"]
[Annotator "NA RC COMBH"]
[PlyCount "60"]
[EventDate "2022.09.28"]
[EventType "team-tourn"]
[EventRounds "7"]
[EventCountry "GER"]
[SourceTitle "playchess.com"]
[Source "ChessBase"]
[SourceQuality "1"]
[TimeControl "40/5400+30:1800+30"]

1. e4 {[%emt 0:00:03]} c5 {[%emt 0:00:06]} 2. Nf3 {[%emt 0:00:10]} e6 {[%emt 0:00:05]} 3. d4 {[%emt 0:00:10]} cxd4 {[%emt 0:00:05]} 4. Nxd4 {[%emt 0:00:07]} Nc6 {[%emt 0:00:16]} 5. Nc3 {[%emt 0:00:25]} Qc7 {[%emt 0:00:50]} 6. Be2 {[%emt 0:01:30]} Nf6 {[%emt 0:04:01]} 7. a3 {[%emt 0:08:42]} a6 {[%emt 0:02:41]} 8. O-O {[%emt 0:00:39]} Be7 {[%emt 0:02:51]} 9. h3 {[%emt 0:00:53]} b5 {[%emt 0:03:26]} 10. Nxc6 {[%emt 0:01:13]} dxc6 {[%emt 0:03:22]} 11. Kh1 {[%emt 0:01:18]} c5 {[%emt 0:16:15]} 12. f4 {[%emt 0:04:45]} b4 {[%emt 0:07:46]} 13. axb4 {[%emt 0:01:34]} cxb4 {[%emt 0:00:14]} 14. Na2 {[%emt 0:19:52]} Nxe4 {[%emt 0:02:28]} 15. Qd3 {[%emt 0:12:01]} Bb7 {[%emt 0:04:26]} 16. Kh2 {[%emt 0:04:29]} Rc8 {[%emt 0:13:26]} 17. Bd1 {[%emt 0:07:37]} Rd8 {[%emt 0:17:14]} 18. Qe3 {[%emt 0:10:50]} Bh4 {[%emt 0:05:26]} 19. Bf3 {[%emt 0:09:12]} Ng3 {[%emt 0:09:46]} 20. Rg1 {[%emt 0:01:41]} Nf5 {[%emt 0:01:27]} 21. Qe5 {[%emt 0:01:45]} Bg3+ {[%emt 0:01:50]} 22. Kh1 {[%emt 0:00:11]} Qxe5 {[%emt 0:01:01]} 23. fxe5 {[%emt 0:00:09]} Bxf3 24. gxf3 {[%emt 0:00:10]} Bxe5 {[%emt 0:00:11]} 25. Nxb4 {[%emt 0:00:43]} Ng3+ {[%emt 0:00:18]} 26. Kg2 {[%emt 0:00:45]} Ne2 {[%emt 0:00:47]} 27. Re1 {[%emt 0:00:41]} Nf4+ {[%emt 0:00:43]} 28. Kf1 {[%emt 0:04:06]} Ng6 {[%emt 0:01:12]} 29. Nc6 {[%emt 0:02:20]} Rd5 {[%emt 0:01:19]} 30. Nxe5 {[%emt 0:01:04]} Nxe5 {[%emt 0:00:33]} 1/2-1/2

[Event "Germany Countries-chT Youth 2022"]
[Site "Wiesbaden"]
[Date "2022.10.02"]
[Round "3"]
[White "Haug, Mara"]
[Black "Gavrylyuk, Oleksandr"]
[Result "1-0"]
[ECO "B35"]
[WhiteElo "1611"]
[BlackElo "1263"]
[Annotator "NA COMBH"]
[PlyCount "91"]
[EventDate "2022.09.28"]
[EventType "team-tourn"]
[EventRounds "7"]
[EventCountry "GER"]
[SourceTitle "playchess.com"]
[Source "ChessBase"]
[SourceQuality "1"]
[TimeControl "40/5400+30:1800+30"]

1. e4 {[%emt 0:00:04]} c5 {[%emt 0:00:04]} 2. Nf3 {[%emt 0:00:06]} Nc6 {[%emt 0:00:08]} 3. d4 {[%emt 0:00:05]} cxd4 {[%emt 0:00:07]} 4. Nxd4 {[%emt 0:00:05]} g6 {[%emt 0:00:12]} 5. Nc3 {[%emt 0:00:09]} Bg7 {[%emt 0:00:08]} 6. Be3 {[%emt 0:00:06]} Nf6 {[%emt 0:00:09]} 7. Bc4 {[%emt 0:00:21]} Qa5 {[%emt 0:00:08]} 8. O-O {[%emt 0:00:07]} O-O {[%emt 0:00:08]} 9. Bb3 {[%emt 0:00:25]} d6 {[%emt 0:00:23]} 10. h3 {[%emt 0:00:37]} Bd7 {[%emt 0:00:16]} 11. Re1 {[%emt 0:01:14]} a6 {[%emt 0:00:46]} 12. f4 {[%emt 0:11:16]} Rac8 {[%emt 0:02:38]} 13. Nf3 {[%emt 0:02:29]} Qc7 {[%emt 0:08:07]} 14. Bf2 {[%emt 0:03:50]} Nh5 {[%emt 0:03:55]} 15. Nd5 {[%emt 0:09:34]} Qb8 {[%emt 0:02:25]} 16. e5 {[%emt 0:17:57]} e6 {[%emt 0:04:11]} 17. Nb6 {[%emt 0:03:51]} Rcd8 {[%emt 0:01:08]} 18. Nc4 {[%emt 0:14:01]} d5 {[%emt 0:04:29]} 19. Nd6 {[%emt 0:00:54]} b5 {[%emt 0:02:29]} 20. Qd2 {[%emt 0:00:45]} f6 {[%emt 0:01:54]} 21. Bc5 {[%emt 0:07:25]} fxe5 {[%emt 0:03:09]} 22. fxe5 {[%emt 0:02:11]} Ng3 {[%emt 0:03:06]} 23. Qf2 {[%emt 0:06:15]} Nf5 {[%emt 0:04:29]} 24. g4 {[%emt 0:09:29]} Nfe7 {[%emt 0:09:24]} 25. Qe3 {[%emt 0:01:49]} Rxf3 {[%emt 0:04:03]} 26. Qxf3 {[%emt 0:00:45]} Rf8 {[%emt 0:00:32]} 27. Qg3 {[%emt 0:02:23]} Qc7 {[%emt 0:03:53]} 28. Bf2 {[%emt 0:03:01]} Nxe5 {[%emt 0:01:44]} 29. Rxe5 {[%emt 0:00:33]} Qxd6 {[%emt 0:01:30]} 30. Re2 {[%emt 0:00:36]} Qxg3+ {[%emt 0:11:43]} 31. Bxg3 {[%emt 0:00:02]} Bxb2 {[%emt 0:00:25]} 32. Rf1 {[%emt 0:00:55]} Bd4+ {[%emt 0:00:27]} 33. Kg2 {[%emt 0:00:46]} Rc8 {[%emt 0:01:12]} 34. Be5 {[%emt 0:01:13]} Nc6 {[%emt 0:01:23]} 35. Bxd4 {[%emt 0:00:30]} Nxd4 {[%emt 0:00:12]} 36. Rd2 {[%emt 0:00:43]} Nc6 {[%emt 0:01:10]} 37. a4 {[%emt 0:00:49]} Nb4 {[%emt 0:00:58]} 38. axb5 {[%emt 0:00:39]} Bxb5 {[%emt 0:00:14]} 39. Rf6 {[%emt 0:00:47]} Rc6 {[%emt 0:02:12]} 40. Rdf2 {[%emt 0:00:16]} a5 {[%emt 0:02:28]} 41. Rf8+ {[%emt 0:06:11]} Kg7 {[%emt 0:00:09]} 42. R2f7+ {[%emt 0:05:04]} Kh6 {[%emt 0:00:11]} 43. h4 {[%emt 0:00:51]} a4 {[%emt 0:03:39]} 44. Rh8 {[%emt 0:01:33]} g5 {[%emt 0:02:36]} 45. Rhxh7+ {[%emt 0:00:16]} Kg6 {[%emt 0:00:13]} 46. h5# {[%emt 0:00:06]} 1-0

[Event "Germany Countries-chT Youth 2022"]
[Site "Wiesbaden"]
[Date "2022.10.02"]
[Round "3"]
[White "Glowiak, Alexandra"]
[Black "Huppert, Anna"]
[Result "1/2-1/2"]
[ECO "C06"]
[WhiteElo "1602"]
[BlackElo "1417"]
[Annotator "NA RC COMBH"]
[PlyCount "129"]
[EventDate "2022.09.28"]
[EventType "team-tourn"]
[EventRounds "7"]
[EventCountry "GER"]
[SourceTitle "playchess.com"]
[Source "ChessBase"]
[SourceQuality "1"]
[TimeControl "40/5400+30:1800+30"]

1. e4 {[%emt 0:00:03]} e6 {[%emt 0:00:07]} 2. d4 {[%emt 0:00:04]} d5 {[%emt 0:00:03]} 3. Nd2 {[%emt 0:00:06]} Nf6 {[%emt 0:00:08]} 4. e5 {[%emt 0:00:04]} Nfd7 {[%emt 0:00:10]} 5. Bd3 {[%emt 0:00:07]} c5 {[%emt 0:00:07]} 6. c3 {[%emt 0:00:06]} Nc6 {[%emt 0:00:06]} 7. Ne2 {[%emt 0:00:10]} cxd4 {[%emt 0:00:09]} 8. cxd4 {[%emt 0:00:12]} f6 {[%emt 0:00:07]} 9. exf6 {[%emt 0:00:15]} Nxf6 {[%emt 0:00:09]} 10. O-O {[%emt 0:00:35]} Bd6 {[%emt 0:00:07]} 11. Nf3 {[%emt 0:00:20]} Qc7 {[%emt 0:00:22]} 12. Nc3 {[%emt 0:00:15]} a6 {[%emt 0:00:29]} 13. Bg5 {[%emt 0:00:18]} O-O {[%emt 0:00:12]} 14. Bh4 {[%emt 0:00:45]} Nh5 {[%emt 0:00:13]} 15. Bg3 {[%emt 0:32:12]} Nxg3 {[%emt 0:04:32]} 16. hxg3 {[%emt 0:00:51]} h6 {[%emt 0:11:51]} 17. Rc1 {[%emt 0:08:02]} Qb8 {[%emt 0:09:32]} 18. Na4 {[%emt 0:06:56]} Qa7 {[%emt 0:15:08]} 19. Bb1 {[%emt 0:04:52]} Rf6 {[%emt 0:11:07]} 20. Qd3 {[%emt 0:08:31]} g6 {[%emt 0:02:11]} 21. Rfd1 {[%emt 0:08:59]} Bd7 {[%emt 0:04:52]} 22. Nc5 {[%emt 0:06:23]} Be8 {[%emt 0:01:26]} 23. Qe3 {[%emt 0:03:19]} g5 {[%emt 0:04:59]} 24. Nxe6 {[%emt 0:02:11]} b6 {[%emt 0:02:28]} 25. Nexg5 {[%emt 0:02:48]} hxg5 {[%emt 0:01:57]} 26. Qxg5+ {[%emt 0:00:25]} Qg7 {[%emt 0:01:31]} 27. Qxd5+ {[%emt 0:00:43]} Qf7 {[%emt 0:06:49]} 28. Be4 {[%emt 0:01:16]} Rc8 {[%emt 0:02:11]} 29. Ne5 {[%emt 0:05:53]} Bxe5 {[%emt 0:03:21]} 30. dxe5 {[%emt 0:00:27]} Rxf2 {[%emt 0:08:48]} 31. Qxf7+ {[%emt 0:00:38]} Rxf7 {[%emt 0:00:13]} 32. Bd5 {[%emt 0:00:42]} Kg7 {[%emt 0:02:47]} 33. Bxf7 {[%emt 0:00:52]} Kxf7 {[%emt 0:00:23]} 34. Rd6 {[%emt 0:04:09]} Ke7 {[%emt 0:00:34]} 35. Kf2 {[%emt 0:00:55]} Bd7 {[%emt 0:00:06]} 36. Re1 {[%emt 0:02:43]} Rf8+ {[%emt 0:00:41]} 37. Kg1 {[%emt 0:00:15]} Rf5 {[%emt 0:00:50]} 38. Red1 {[%emt 0:01:05]} Nxe5 {[%emt 0:05:15]} 39. Rxb6 {[%emt 0:00:40]} Bb5 {[%emt 0:00:02]} 40. Re1 {[%emt 0:00:45]} Kf7 {[%emt 0:01:11]} 41. b3 {[%emt 0:05:27]} Nd3 {[%emt 0:10:57]} 42. Re3 {[%emt 0:04:40]} Ne5 {[%emt 0:01:58]} 43. Re4 {[%emt 0:03:41]} Kg7 {[%emt 0:04:16]} 44. Rd6 {[%emt 0:04:24]} Nf7 {[%emt 0:05:49]} 45. Rdd4 {[%emt 0:05:15]} Rf1+ {[%emt 0:04:08]} 46. Kh2 {[%emt 0:00:09]} Rf2 {[%emt 0:01:20]} 47. Rg4+ {[%emt 0:05:40]} Kf8 {[%emt 0:00:20]} 48. a4 {[%emt 0:01:12]} Bc6 {[%emt 0:01:06]} 49. Rg6 {[%emt 0:00:38]} Rxg2+ {[%emt 0:03:25]} 50. Kh3 {[%emt 0:00:08]} Rc2 {[%emt 0:01:49]} 51. Rc4 {[%emt 0:03:34]} Bd7+ {[%emt 0:00:21]} 52. g4 {[%emt 0:00:37]} Rb2 {[%emt 0:00:40]} 53. Rb4 {[%emt 0:00:55]} a5 {[%emt 0:01:12]} 54. Rb8+ {[%emt 0:00:04]} Ke7 {[%emt 0:00:15]} 55. Ra6 {[%emt 0:00:50]} Bxa4 {[%emt 0:00:14]} 56. Rb7+ {[%emt 0:00:34]} Bd7 {[%emt 0:01:04]} 57. Rxa5 {[%emt 0:00:11]} Nd8 {[%emt 0:01:11]} 58. Rb6 {[%emt 0:00:31]} Nc6 {[%emt 0:00:27]} 59. Raa6 {[%emt 0:00:33]} Ne5 {[%emt 0:00:21]} 60. Ra7 {[%emt 0:00:50]} Ke8 {[%emt 0:01:21]} 61. Rb8+ {[%emt 0:00:31]} Ke7 {[%emt 0:00:21]} 62. Rbb7 {[%emt 0:00:15]} Kd6 {[%emt 0:00:20]} 63. Ra6+ {[%emt 0:00:50]} Kc5 {[%emt 0:00:19]} 64. Ra5+ {[%emt 0:00:35]} Kc6 {[%emt 0:00:16]} 65. Rxe5 {[%emt 0:00:17]} 1/2-1/2

[Event "Germany Countries-chT Youth 2022"]
[Site "Wiesbaden"]
[Date "2022.10.02"]
[Round "3"]
[White "Henninger, Claire"]
[Black "Pohle, Saskia"]
[Result "0-1"]
[ECO "C50"]
[WhiteElo "1526"]
[BlackElo "1756"]
[Annotator "NA RC COMBH"]
[PlyCount "60"]
[EventDate "2022.09.28"]
[EventType "team-tourn"]
[EventRounds "7"]
[EventCountry "GER"]
[SourceTitle "playchess.com"]
[Source "ChessBase"]
[SourceQuality "1"]
[TimeControl "40/5400+30:1800+30"]

1. e4 {[%emt 0:00:01]} e5 {[%emt 0:00:05]} 2. Nf3 {[%emt 0:00:10]} Nc6 {[%emt 0:00:05]} 3. Bc4 {[%emt 0:00:11]} Bc5 {[%emt 0:00:05]} 4. d3 {[%emt 0:01:41]} Nf6 {[%emt 0:00:07]} 5. Nc3 {[%emt 0:01:38]} d6 {[%emt 0:00:13]} 6. h3 {[%emt 0:01:18]} a6 {[%emt 0:02:02]} 7. Be3 {[%emt 0:04:36]} Ba7 {[%emt 0:05:45]} 8. Bxa7 {[%emt 0:04:23]} Rxa7 {[%emt 0:00:07]} 9. a3 {[%emt 0:05:59]} O-O {[%emt 0:01:14]} 10. Qd2 {[%emt 0:03:21]} b5 {[%emt 0:02:04]} 11. Ba2 {[%emt 0:02:20]} Ne7 {[%emt 0:04:17]} 12. O-O-O {[%emt 0:03:20]} c5 {[%emt 0:04:26]} 13. Nd5 {[%emt 0:04:16]} Nfxd5 {[%emt 0:02:01]} 14. exd5 {[%emt 0:00:49]} Qb6 {[%emt 0:01:57]} 15. g4 {[%emt 0:02:35]} a5 {[%emt 0:03:57]} 16. Rdg1 {[%emt 0:07:22]} a4 {[%emt 0:10:46]} 17. h4 {[%emt 0:07:15]} b4 {[%emt 0:01:56]} 18. h5 {[%emt 0:02:21]} Rb7 {[%emt 0:08:59]} 19. axb4 {[%emt 0:04:08]} cxb4 {[%emt 0:00:32]} 20. g5 {[%emt 0:09:54]} b3 {[%emt 0:06:23]} 21. cxb3 {[%emt 0:00:27]} axb3 {[%emt 0:02:06]} 22. Bb1 {[%emt 0:00:16]} Qc5+ {[%emt 0:02:46]} 23. Kd1 {[%emt 0:02:19]} Qxd5 {[%emt 0:00:33]} 24. Nh4 {[%emt 0:06:48]} Ra7 {[%emt 0:11:07]} 25. Rh2 {[%emt 0:05:56]} Ra4 {[%emt 0:04:54]} 26. g6 {[%emt 0:04:08]} fxg6 {[%emt 0:02:01]} 27. Qg5 {[%emt 0:06:29]} Ra1 {[%emt 0:08:19]} 28. Kd2 {[%emt 0:03:02]} Qd4 {[%emt 0:03:52]} 29. Kc1 {[%emt 0:04:40]} Qxd3 {[%emt 0:00:20]} 30. Qxg6 {[%emt 0:01:21]} Rxb1# 0-1

[Event "Germany Countries-chT Youth 2022"]
[Site "Wiesbaden"]
[Date "2022.10.02"]
[Round "3"]
[White "Noennig, Jakob"]
[Black "Meng, Yuxuan"]
[Result "1-0"]
[ECO "B43"]
[WhiteElo "1510"]
[BlackElo "1472"]
[Annotator "NA RC COMBH"]
[PlyCount "63"]
[EventDate "2022.09.28"]
[EventType "team-tourn"]
[EventRounds "7"]
[EventCountry "GER"]
[SourceTitle "playchess.com"]
[Source "ChessBase"]
[SourceQuality "1"]
[TimeControl "40/5400+30:1800+30"]

1. e4 {[%emt 0:00:03]} c5 {[%emt 0:00:04]} 2. Nf3 {[%emt 0:00:06]} e6 {[%emt 0:00:07]} 3. d4 {[%emt 0:00:08]} cxd4 {[%emt 0:00:04]} 4. Nxd4 {[%emt 0:00:09]} a6 {[%emt 0:00:05]} 5. Nc3 {[%emt 0:00:52]} Qc7 {[%emt 0:00:06]} 6. Bd3 {[%emt 0:02:19]} Nf6 {[%emt 0:01:59]} 7. O-O {[%emt 0:01:10]} Be7 {[%emt 0:07:46]} 8. Be3 {[%emt 0:05:32]} O-O {[%emt 0:05:51]} 9. f4 {[%emt 0:05:25]} d6 {[%emt 0:02:47]} 10. Qf3 {[%emt 0:08:13]} Nbd7 {[%emt 0:10:47]} 11. f5 {[%emt 0:06:23]} e5 {[%emt 0:08:31]} 12. Nb3 {[%emt 0:04:05]} Rd8 {[%emt 0:07:00]} 13. g4 {[%emt 0:03:17]} h6 {[%emt 0:08:21]} 14. h4 {[%emt 0:03:40]} h5 {[%emt 0:20:11]} 15. g5 {[%emt 0:02:15]} b5 {[%emt 0:05:38]} 16. gxf6 {[%emt 0:03:04]} Nxf6 {[%emt 0:00:20]} 17. Bg5 {[%emt 0:01:09]} Bb7 {[%emt 0:01:20]} 18. Bxf6 {[%emt 0:07:07]} Bxf6 {[%emt 0:00:12]} 19. Qxh5 {[%emt 0:03:19]} Qb6+ {[%emt 0:04:02]} 20. Kh1 {[%emt 0:01:44]} Qe3 {[%emt 0:00:44]} 21. Rf3 {[%emt 0:00:24]} Qh6 {[%emt 0:01:25]} 22. Qxh6 {[%emt 0:00:45]} gxh6 {[%emt 0:00:11]} 23. Na5 {[%emt 0:01:32]} Rab8 {[%emt 0:02:00]} 24. Nxb7 {[%emt 0:00:13]} Rxb7 {[%emt 0:00:05]} 25. Nd5 {[%emt 0:00:06]} Bxh4 {[%emt 0:01:00]} 26. Rg1+ {[%emt 0:01:08]} Kf8 {[%emt 0:02:49]} 27. f6 {[%emt 0:02:51]} Bg5 {[%emt 0:02:42]} 28. Bf1 {[%emt 0:01:24]} Rc8 {[%emt 0:01:45]} 29. Rh3 {[%emt 0:01:52]} Ke8 {[%emt 0:01:36]} 30. Rxg5 {[%emt 0:00:17]} hxg5 {[%emt 0:00:46]} 31. Rh8+ {[%emt 0:00:05]} Kd7 {[%emt 0:00:04]} 32. Bh3+ {[%emt 0:00:05]} 1-0

[Event "Germany Countries-chT Youth 2022"]
[Site "Wiesbaden"]
[Date "2022.10.02"]
[Round "3"]
[White "Burlutskaia, Maria"]
[Black "Struebel, Katharina"]
[Result "1-0"]
[ECO "C55"]
[WhiteElo "1468"]
[BlackElo "1273"]
[Annotator "NA RC COMBH"]
[PlyCount "157"]
[EventDate "2022.09.28"]
[EventType "team-tourn"]
[EventRounds "7"]
[EventCountry "GER"]
[SourceTitle "playchess.com"]
[Source "ChessBase"]
[SourceQuality "1"]
[TimeControl "40/5400+30:1800+30"]

1. e4 {[%emt 0:00:01]} e5 {[%emt 0:00:05]} 2. Nf3 {[%emt 0:00:04]} Nc6 {[%emt 0:00:09]} 3. d4 {[%emt 0:00:04]} exd4 {[%emt 0:00:07]} 4. Bc4 {[%emt 0:00:08]} Nf6 {[%emt 0:00:30]} 5. O-O {[%emt 0:00:06]} d5 {[%emt 0:00:32]} 6. exd5 {[%emt 0:03:30]} Nxd5 {[%emt 0:01:52]} 7. c3 {[%emt 0:01:13]} Be6 {[%emt 0:02:36]} 8. Re1 {[%emt 0:00:18]} Be7 {[%emt 0:01:10]} 9. Nxd4 {[%emt 0:03:57]} Nxd4 {[%emt 0:03:00]} 10. Qxd4 {[%emt 0:00:25]} O-O {[%emt 0:03:35]} 11. f4 {[%emt 0:05:36]} b6 {[%emt 0:03:23]} 12. Qd3 {[%emt 0:02:36]} Bc5+ {[%emt 0:05:17]} 13. Kh1 {[%emt 0:03:43]} c6 {[%emt 0:03:53]} 14. f5 {[%emt 0:03:06]} Bc8 {[%emt 0:10:16]} 15. b4 {[%emt 0:00:58]} Be7 16. Bb2 {[%emt 0:05:08]} Bf6 {[%emt 0:15:31]} 17. Bxd5 {[%emt 0:05:28]} Qxd5 {[%emt 0:02:37]} 18. Qxd5 {[%emt 0:02:07]} cxd5 {[%emt 0:00:14]} 19. Na3 {[%emt 0:01:20]} Bxf5 {[%emt 0:00:49]} 20. Rad1 {[%emt 0:02:06]} Be4 {[%emt 0:01:38]} 21. Nb5 {[%emt 0:03:17]} Rfd8 {[%emt 0:05:27]} 22. Nd4 {[%emt 0:04:23]} Rac8 {[%emt 0:03:01]} 23. b5 {[%emt 0:01:23]} Rc4 {[%emt 0:04:18]} 24. Nc6 {[%emt 0:01:13]} Rd7 {[%emt 0:01:33]} 25. h3 {[%emt 0:01:39]} h6 {[%emt 0:01:07]} 26. Re3 {[%emt 0:16:39]} Rc5 {[%emt 0:04:37]} 27. Rxe4 {[%emt 0:00:49]} Rxb5 {[%emt 0:02:57]} 28. Re8+ {[%emt 0:00:32]} Kh7 {[%emt 0:00:16]} 29. Ba1 {[%emt 0:00:22]} Rc5 {[%emt 0:02:53]} 30. Nd4 {[%emt 0:02:22]} Rdc7 {[%emt 0:01:42]} 31. g3 {[%emt 0:05:59]} Rc4 {[%emt 0:02:47]} 32. Nb5 {[%emt 0:10:13]} Rd7 {[%emt 0:03:35]} 33. Kg2 {[%emt 0:01:25]} Rc5 {[%emt 0:01:19]} 34. Nd4 {[%emt 0:00:17]} Ra5 {[%emt 0:01:06]} 35. Re2 {[%emt 0:00:17]} Re7 {[%emt 0:00:48]} 36. Rxe7 {[%emt 0:00:48]} Bxe7 {[%emt 0:00:15]} 37. Rd2 {[%emt 0:00:17]} Rc5 {[%emt 0:00:40]} 38. Nb3 {[%emt 0:00:33]} Rc6 {[%emt 0:00:23]} 39. Rxd5 {[%emt 0:00:15]} Rc7 {[%emt 0:00:39]} 40. Kf3 {[%emt 0:00:15]} Bf6 {[%emt 0:00:29]} 41. Rd3 {[%emt 0:30:15]} Kg6 {[%emt 0:30:34]} 42. Nd4 {[%emt 0:00:31]} Rd7 {[%emt 0:00:48]} 43. Bb2 {[%emt 0:00:42]} Rd5 {[%emt 0:01:16]} 44. Ke4 {[%emt 0:00:41]} Ra5 {[%emt 0:00:36]} 45. a3 {[%emt 0:00:19]} Re5+ {[%emt 0:00:30]} 46. Kf3 {[%emt 0:00:15]} Rd5 {[%emt 0:00:25]} 47. Bc1 {[%emt 0:01:20]} a6 {[%emt 0:00:58]} 48. Bf4 {[%emt 0:01:05]} b5 {[%emt 0:01:32]} 49. Ke4 {[%emt 0:00:13]} Rd7 {[%emt 0:00:39]} 50. Nc6 {[%emt 0:00:55]} Rb7 {[%emt 0:01:19]} 51. Be5 {[%emt 0:02:07]} Bg5 {[%emt 0:01:10]} 52. Na5 {[%emt 0:00:23]} Re7 {[%emt 0:00:36]} 53. Kd5 {[%emt 0:00:44]} Rd7+ {[%emt 0:00:36]} 54. Bd6 {[%emt 0:00:08]} Be7 {[%emt 0:01:06]} 55. Kc6 {[%emt 0:00:14]} Rd8 {[%emt 0:01:00]} 56. Kc7 {[%emt 0:00:54]} Rxd6 {[%emt 0:01:27]} 57. Rxd6+ {[%emt 0:00:08]} Bxd6+ {[%emt 0:00:11]} 58. Kxd6 {[%emt 0:00:05]} Kf5 {[%emt 0:00:31]} 59. Kd5 {[%emt 0:02:15]} h5 {[%emt 0:00:44]} 60. Nb3 {[%emt 0:00:09]} g5 {[%emt 0:00:35]} 61. Nd4+ {[%emt 0:00:12]} Kg6 {[%emt 0:00:23]} 62. g4 {[%emt 0:00:41]} h4 {[%emt 0:01:09]} 63. Ke5 {[%emt 0:00:28]} f6+ {[%emt 0:00:42]} 64. Ke6 {[%emt 0:00:14]} Kg7 {[%emt 0:00:44]} 65. Nc6 {[%emt 0:00:44]} Kg6 {[%emt 0:00:19]} 66. Nb8 {[%emt 0:00:03]} a5 {[%emt 0:00:16]} 67. Nc6 {[%emt 0:00:07]} b4 {[%emt 0:00:31]} 68. cxb4 {[%emt 0:00:07]} axb4 {[%emt 0:00:08]} 69. axb4 {[%emt 0:00:04]} Kg7 {[%emt 0:00:05]} 70. Ke7 {[%emt 0:00:13]} Kg6 {[%emt 0:00:20]} 71. Ke6 {[%emt 0:00:24]} Kg7 {[%emt 0:00:07]} 72. b5 {[%emt 0:00:04]} Kf8 {[%emt 0:00:17]} 73. b6 {[%emt 0:00:11]} f5 {[%emt 0:00:15]} 74. b7 {[%emt 0:00:06]} fxg4 {[%emt 0:00:11]} 75. b8=Q+ {[%emt 0:00:09]} Kg7 {[%emt 0:00:09]} 76. Qc7+ {[%emt 0:00:08]} Kg6 {[%emt 0:00:16]} 77. Ne5+ {[%emt 0:00:11]} Kh6 {[%emt 0:00:14]} 78. Nxg4+ {[%emt 0:00:07]} Kg6 {[%emt 0:00:12]} 79. Qf7# 1-0